[Event "European Womens-ch 2025"]
[Site "Rhodes"]
[Date "2025.04.02"]
[Round "3.52"]
[White "Tirpan, Ceren"]
[Black "Pavlidou, Ekaterini"]
[Result "0-1"]
[Annotator "RC"]
[ECO "A37"]
[WhiteElo "1996"]
[BlackElo "2160"]
[PlyCount "80"]
[EventDate "2025.03.29"]
[EventType "swiss"]
[EventCountry "GRE"]
[SourceTitle "playchess.com"]
[Source "ChessBase"]
[SourceQuality "1"]
[TimeControl "40/5400+30:1800+30"]

1. c4 {[%emt 0:00:03]} c5 {[%emt 0:02:47]} 2. Nc3 {[%emt 0:00:09]} Nc6 {[%emt 0:00:43]} 3. g3 {[%emt 0:00:07]} g6 {[%emt 0:02:04]} 4. Bg2 {[%emt 0:00:05]} Bg7 {[%emt 0:00:49]} 5. Nf3 {[%emt 0:00:09]} e5 {[%emt 0:00:21]} 6. d3 {[%emt 0:00:07]} d6 {[%emt 0:02:08]} 7. Nd2 {[%emt 0:02:37]} Nge7 {[%emt 0:01:20]} 8. Nf1 {[%emt 0:00:14]} O-O {[%emt 0:02:29]} 9. Bg5 {[%emt 0:06:16]} f6 {[%emt 0:03:13]} 10. Bd2 {[%emt 0:00:10]} Be6 {[%emt 0:04:06]} 11. Ne3 {[%emt 0:06:19]} Qd7 {[%emt 0:02:39]} 12. O-O {[%emt 0:11:09]} f5 {[%emt 0:14:50]} 13. f4 {[%emt 0:09:23]} Rae8 {[%emt 0:05:18]} 14. Rb1 {[%emt 0:08:06]} h6 {[%emt 0:03:17]} 15. Ned5 {[%emt 0:08:31]} Kh7 {[%emt 0:03:50]} 16. a3 {[%emt 0:03:33]} Bf7 {[%emt 0:06:55]} 17. Qa4 {[%emt 0:06:15]} Nc8 {[%emt 0:15:05]} 18. e3 {[%emt 0:05:20]} Re6 {[%emt 0:07:31]} 19. b4 {[%emt 0:05:34]} Be8 {[%emt 0:01:16]} 20. Nb5 {[%emt 0:05:25]} N6e7 {[%emt 0:02:48]} 21. Ndc7 {[%emt 0:01:14]} Ref6 {[%emt 0:01:01]} 22. Nxe8 {[%emt 0:00:19]} Rxe8 {[%emt 0:00:46]} 23. Nc3 {[%emt 0:04:54]} Qd8 {[%emt 0:03:43]} 24. bxc5 {[%emt 0:01:20]} exf4 {[%emt 0:00:33]} 25. gxf4 {[%emt 0:02:31]} dxc5 {[%emt 0:00:16]} 26. Rxb7 {[%emt 0:01:21]} Nb6 {[%emt 0:03:23]} 27. Qc2 {[%emt 0:00:33]} Rd6 {[%emt 0:00:31]} 28. Rxa7 {[%emt 0:02:43]} Nxc4 {[%emt 0:01:08]} 29. Nb5 {[%emt 0:02:44]} Rxd3 {[%emt 0:00:05]} 30. Qxc4 {[%emt 0:00:05]} Rxd2 {[%emt 0:00:11]} 31. Nc7 {[%emt 0:00:18]} Rg8 {[%emt 0:06:15]} 32. Qxc5 {[%emt 0:00:27]} Nc8 {[%emt 0:01:25]} 33. Ra8 {[%emt 0:03:34]} Qd3 {[%emt 0:00:22]} 34. Rf2 {[%emt 0:03:27]} Rd8 {[%emt 0:03:28]} 35. Rxd2 {[%emt 0:01:07]} Qxd2 {[%emt 0:00:03]} 36. Nd5 {[%emt 0:00:36]} Qd1+ {[%emt 0:00:44]} 37. Kf2 {[%emt 0:01:29]} Qd2+ {[%emt 0:00:12]} 38. Kg1 {[%emt 0:00:03]} Qd1+ {[%emt 0:00:24]} 39. Bf1 {[%emt 0:00:10]} Rxd5 {[%emt 0:00:39]} 40. Qxc8 {[%emt 0:00:00]} Qg4+ {[%emt 0:00:00]} 0-1

[Event "European Womens-ch 2025"]
[Site "Rhodes"]
[Date "2025.04.02"]
[Round "3.53"]
[White "Yildiz, Elif Zeren"]
[Black "Alexandri, Dimitra"]
[Result "1-0"]
[Annotator "RC"]
[ECO "B90"]
[WhiteElo "2160"]
[BlackElo "1995"]
[PlyCount "71"]
[EventDate "2025.03.29"]
[EventType "swiss"]
[EventCountry "GRE"]
[SourceTitle "playchess.com"]
[Source "ChessBase"]
[SourceQuality "1"]
[TimeControl "40/5400+30:1800+30"]

1. e4 {[%emt 0:00:02]} c5 {[%emt 0:00:07]} 2. Nf3 {[%emt 0:00:07]} d6 {[%emt 0:00:08]} 3. d4 {[%emt 0:00:04]} cxd4 {[%emt 0:00:11]} 4. Nxd4 {[%emt 0:00:04]} Nf6 {[%emt 0:00:16]} 5. Nc3 {[%emt 0:00:04]} a6 {[%emt 0:00:09]} 6. Be3 {[%emt 0:00:04]} e5 {[%emt 0:00:26]} 7. Nb3 {[%emt 0:00:04]} Be6 {[%emt 0:00:30]} 8. h3 {[%emt 0:00:05]} h5 {[%emt 0:01:03]} 9. f4 {[%emt 0:00:20]} exf4 {[%emt 0:09:26]} 10. Bxf4 {[%emt 0:00:01]} Nc6 {[%emt 0:02:37]} 11. Qe2 {[%emt 0:05:02]} Nd7 {[%emt 0:12:53]} 12. O-O-O {[%emt 0:04:51]} Nde5 {[%emt 0:00:48]} 13. Nd5 {[%emt 0:08:30]} Rc8 {[%emt 0:14:44]} 14. Kb1 {[%emt 0:06:40]} b5 {[%emt 0:04:57]} 15. Qf2 {[%emt 0:10:42]} Rb8 {[%emt 0:07:28]} 16. Nd4 {[%emt 0:07:04]} Nxd4 {[%emt 0:09:32]} 17. Qxd4 {[%emt 0:00:20]} Nc6 {[%emt 0:04:53]} 18. Qe3 {[%emt 0:02:38]} Bxd5 {[%emt 0:07:22]} 19. exd5+ {[%emt 0:03:09]} Ne7 {[%emt 0:00:14]} 20. Bd3 {[%emt 0:00:45]} Qb6 {[%emt 0:02:28]} 21. Qf3 {[%emt 0:00:45]} Qc5 {[%emt 0:01:51]} 22. Rhe1 {[%emt 0:04:24]} Rb7 {[%emt 0:08:21]} 23. Rf1 {[%emt 0:06:10]} Ng8 {[%emt 0:06:47]} 24. Rde1+ {[%emt 0:04:44]} Kd8 {[%emt 0:00:25]} 25. Be3 {[%emt 0:00:09]} Qc7 {[%emt 0:00:31]} 26. Bd4 {[%emt 0:00:33]} f6 {[%emt 0:03:16]} 27. Re6 {[%emt 0:00:28]} Be7 {[%emt 0:00:23]} 28. Rfe1 {[%emt 0:01:31]} Kc8 {[%emt 0:01:52]} 29. Bg6 {[%emt 0:04:28]} h4 {[%emt 0:00:31]} 30. Be8 {[%emt 0:00:14]} Rb8 {[%emt 0:00:40]} 31. Bc6 {[%emt 0:00:40]} Kd8 {[%emt 0:00:18]} 32. Qe3 {[%emt 0:00:19]} g5 {[%emt 0:00:45]} 33. Bxf6 {[%emt 0:04:11]} Nxf6 {[%emt 0:00:22]} 34. Rxe7 {[%emt 0:00:05]} Qb6 {[%emt 0:00:19]} 35. Qe6 {[%emt 0:00:36]} Rf8 {[%emt 0:00:41]} 36. Qxf6 {[%emt 0:00:32]} 1-0

[Event "European Womens-ch 2025"]
[Site "Rhodes"]
[Date "2025.04.02"]
[Round "3.54"]
[White "Kiousi, Panagiota"]
[Black "Eric, Jovana"]
[Result "0-1"]
[Annotator "NA RC"]
[ECO "D30"]
[WhiteElo "1998"]
[BlackElo "2147"]
[PlyCount "60"]
[EventDate "2025.03.29"]
[EventType "swiss"]
[EventCountry "GRE"]
[SourceTitle "playchess.com"]
[Source "ChessBase"]
[SourceQuality "1"]
[TimeControl "40/5400+30:1800+30"]

1. d4 {[%emt 0:00:03]} d5 {[%emt 0:00:07]} 2. c4 {[%emt 0:00:03]} e6 {[%emt 0:00:06]} 3. Nf3 {[%emt 0:00:04]} a6 {[%emt 0:00:09]} 4. cxd5 {[%emt 0:00:31]} exd5 {[%emt 0:00:06]} 5. Qc2 {[%emt 0:02:40]} Nf6 {[%emt 0:00:50]} 6. Bg5 {[%emt 0:02:29]} Be6 {[%emt 0:01:23]} 7. e3 {[%emt 0:03:30]} Nbd7 {[%emt 0:01:16]} 8. Ne5 {[%emt 0:05:35]} c6 {[%emt 0:08:04]} 9. Nc3 {[%emt 0:04:25]} h6 {[%emt 0:04:15]} 10. Bh4 {[%emt 0:01:36]} Be7 {[%emt 0:01:59]} 11. Be2 {[%emt 0:10:12]} O-O {[%emt 0:08:23]} 12. O-O {[%emt 0:01:39]} Nxe5 {[%emt 0:14:29]} 13. dxe5 {[%emt 0:00:06]} Ng4 {[%emt 0:00:55]} 14. Bxe7 {[%emt 0:13:53]} Qxe7 {[%emt 0:00:05]} 15. Bxg4 {[%emt 0:00:05]} Bxg4 {[%emt 0:00:05]} 16. Qa4 {[%emt 0:00:38]} Bd7 {[%emt 0:03:19]} 17. Qd4 {[%emt 0:17:48]} Rae8 {[%emt 0:02:38]} 18. f4 {[%emt 0:04:09]} f6 {[%emt 0:02:06]} 19. exf6 {[%emt 0:30:34]} Qxf6 {[%emt 0:02:30]} 20. Qb6 {[%emt 0:00:00]} Bc8 {[%emt 0:05:01]} 21. Rae1 {[%emt 0:00:00]} Bf5 {[%emt 0:08:59]} 22. Qb3 {[%emt 0:00:00]} Rf7 {[%emt 0:03:41]} 23. Ne2 {[%emt 0:00:00]} Kh8 {[%emt 0:08:03]} 24. Nd4 {[%emt 0:00:00]} Be4 {[%emt 0:03:11]} 25. Qc3 {[%emt 0:00:00]} Rfe7 {[%emt 0:03:11]} 26. f5 {[%emt 0:00:00]} Re5 {[%emt 0:03:00]} 27. Rf4 {[%emt 0:00:00]} Qg5 {[%emt 0:06:52]} 28. g4 {[%emt 0:00:00]} Qf6 {[%emt 0:03:54]} 29. Ne2 {[%emt 0:03:19]} h5 {[%emt 0:02:55]} 30. h3 {[%emt 0:01:36]} Qh4 {[%emt 0:00:30]} 0-1

[Event "European Womens-ch 2025"]
[Site "Rhodes"]
[Date "2025.04.02"]
[Round "3.55"]
[White "Ciolacu, Alessia-Mihaela"]
[Black "Nahapetyan, Ani"]
[Result "1/2-1/2"]
[Annotator "NA RC"]
[ECO "D45"]
[WhiteElo "2136"]
[BlackElo "1887"]
[PlyCount "54"]
[EventDate "2025.03.29"]
[EventType "swiss"]
[EventCountry "GRE"]
[SourceTitle "playchess.com"]
[Source "ChessBase"]
[SourceQuality "1"]
[TimeControl "40/5400+30:1800+30"]

1. d4 d5 2. c4 c6 {[%emt 1:31:30]} 3. Nc3 Nf6 {[%emt 0:00:30]} 4. e3 e6 {[%emt 0:00:30]} 5. Nf3 Nbd7 {[%emt 0:00:30]} 6. Be2 dxc4 {[%emt 0:00:30]} 7. a4 {[%emt 1:34:00]} Bd6 8. Nd2 {[%emt 0:00:30]} O-O {[%emt 0:01:00]} 9. Nxc4 {[%emt 0:00:30]} Bc7 {[%emt 0:00:30]} 10. b3 Nb6 {[%emt 0:00:30]} 11. Bb2 Nxc4 {[%emt 0:00:30]} 12. Bxc4 Qe7 {[%emt 0:00:30]} 13. Qe2 e5 {[%emt 0:00:30]} 14. dxe5 Bxe5 {[%emt 0:00:30]} 15. Rc1 Be6 {[%emt 0:00:30]} 16. O-O Bxh2+ {[%emt 0:00:30]} 17. Kxh2 {[%emt 0:04:00]} Ng4+ {[%emt 0:00:30]} 18. Kg3 {[%emt 0:00:30]} h5 {[%emt 0:00:30]} 19. Bxe6 {[%emt 0:00:30]} Qxe6 {[%emt 0:00:30]} 20. Qc4 {[%emt 0:00:30]} Qg6 {[%emt 0:00:30]} 21. Kh3 {[%emt 0:00:30]} Qf5 {[%emt 0:00:30]} 22. Qf4 {[%emt 0:00:30]} Qe6 {[%emt 0:00:30]} 23. Kg3 {[%emt 0:00:30]} Qg6 {[%emt 0:00:30]} 24. Kh3 {[%emt 0:00:30]} Qe6 {[%emt 0:00:30]} 25. Kg3 {[%emt 0:00:30]} Qg6 {[%emt 0:00:30]} 26. Kh3 {[%emt 0:00:30]} Qe6 {[%emt 0:00:30]} 27. Kg3 {[%emt 0:00:30]} Qg6 {[%emt 0:00:30]} 1/2-1/2

[Event "European Womens-ch 2025"]
[Site "Rhodes"]
[Date "2025.04.02"]
[Round "3.56"]
[White "Krkyasharyan, Sona"]
[Black "Chelushkina, Irina"]
[Result "1/2-1/2"]
[Annotator "RC"]
[ECO "D97"]
[WhiteElo "1989"]
[BlackElo "2134"]
[PlyCount "135"]
[EventDate "2025.03.29"]
[EventType "swiss"]
[EventCountry "GRE"]
[SourceTitle "playchess.com"]
[Source "ChessBase"]
[SourceQuality "1"]
[TimeControl "40/5400+30:1800+30"]

1. d4 {[%emt 0:00:02]} Nf6 {[%emt 0:00:18]} 2. c4 {[%emt 0:00:07]} g6 {[%emt 0:00:04]} 3. Nc3 {[%emt 0:00:05]} d5 {[%emt 0:00:08]} 4. Nf3 {[%emt 0:00:05]} Bg7 {[%emt 0:00:41]} 5. Qb3 {[%emt 0:00:08]} dxc4 {[%emt 0:00:37]} 6. Qxc4 {[%emt 0:00:06]} O-O {[%emt 0:00:48]} 7. e4 {[%emt 0:00:06]} a6 {[%emt 0:04:36]} 8. Be2 {[%emt 0:00:43]} b5 {[%emt 0:00:36]} 9. Qb3 {[%emt 0:00:06]} Nfd7 {[%emt 0:08:55]} 10. Be3 {[%emt 0:02:49]} Nc6 {[%emt 0:02:01]} 11. O-O {[%emt 0:01:53]} Nb6 {[%emt 0:06:53]} 12. d5 {[%emt 0:05:33]} Na5 {[%emt 0:01:00]} 13. Qc2 {[%emt 0:00:30]} f5 {[%emt 0:04:17]} 14. Rad1 {[%emt 0:22:26]} fxe4 {[%emt 0:10:27]} 15. Nxe4 {[%emt 0:01:59]} Bf5 {[%emt 0:01:29]} 16. Bxb6 {[%emt 0:13:46]} cxb6 {[%emt 0:00:07]} 17. Nh4 {[%emt 0:00:05]} Rc8 {[%emt 0:00:54]} 18. Qb1 {[%emt 0:00:11]} Bxe4 {[%emt 0:06:48]} 19. Qxe4 {[%emt 0:00:05]} Qd6 {[%emt 0:00:00]} 20. Nf3 {[%emt 0:15:03]} Bxb2 {[%emt 0:05:37]} 21. Ng5 {[%emt 0:02:53]} Bf6 {[%emt 0:21:00]} 22. Ne6 {[%emt 0:00:43]} Rfe8 {[%emt 0:00:06]} 23. f4 {[%emt 0:05:08]} Nb7 {[%emt 0:03:17]} 24. f5 {[%emt 0:02:23]} Nc5 {[%emt 0:00:27]} 25. Qg4 {[%emt 0:00:07]} Nxe6 {[%emt 0:01:35]} 26. dxe6 {[%emt 0:00:11]} Qc5+ {[%emt 0:00:58]} 27. Kh1 {[%emt 0:00:07]} Kg7 {[%emt 0:05:08]} 28. Bd3 {[%emt 0:01:02]} Rcd8 {[%emt 0:03:41]} 29. fxg6 {[%emt 0:00:26]} h5 {[%emt 0:00:57]} 30. Qe2 {[%emt 0:03:08]} Rd5 {[%emt 0:00:14]} 31. Rf3 {[%emt 0:04:29]} Re5 {[%emt 0:01:52]} 32. Qf1 {[%emt 0:02:14]} Rxe6 {[%emt 0:02:05]} 33. Rf5 {[%emt 0:00:48]} Re5 {[%emt 0:00:12]} 34. Qf3 {[%emt 0:01:18]} Rxf5 {[%emt 0:00:13]} 35. Bxf5 {[%emt 0:00:07]} Qe5 {[%emt 0:03:38]} 36. h3 {[%emt 0:01:44]} h4 {[%emt 0:00:46]} 37. Bc2 {[%emt 0:05:37]} Rf8 {[%emt 0:00:53]} 38. Qe4 {[%emt 0:01:34]} Qxe4 {[%emt 0:00:32]} 39. Bxe4 {[%emt 0:00:02]} Rc8 {[%emt 0:00:16]} 40. Kg1 {[%emt 0:00:00]} Rc4 {[%emt 0:00:00]} 41. Bd3 {[%emt 0:02:37]} Ra4 {[%emt 0:03:07]} 42. Rd2 {[%emt 0:01:08]} Rd4 {[%emt 0:01:22]} 43. Kf2 {[%emt 0:01:00]} b4 {[%emt 0:00:48]} 44. Ke2 {[%emt 0:02:52]} b5 {[%emt 0:02:13]} 45. Bf5 {[%emt 0:04:45]} Rc4 {[%emt 0:01:16]} 46. Rc2 {[%emt 0:00:40]} Bc3 {[%emt 0:00:38]} 47. Kf3 {[%emt 0:01:08]} a5 {[%emt 0:02:19]} 48. Bd3 {[%emt 0:01:32]} Rc5 {[%emt 0:00:05]} 49. g3 {[%emt 0:00:19]} hxg3 {[%emt 0:00:31]} 50. Kxg3 {[%emt 0:00:06]} a4 {[%emt 0:02:26]} 51. h4 {[%emt 0:04:36]} Rd5 {[%emt 0:05:46]} 52. Be4 {[%emt 0:01:06]} Re5 {[%emt 0:02:50]} 53. Kf3 {[%emt 0:00:42]} a3 {[%emt 0:00:34]} 54. Rh2 {[%emt 0:02:57]} Kh6 {[%emt 0:03:14]} 55. Bc2 {[%emt 0:02:35]} Rc5 {[%emt 0:00:48]} 56. Rg2 {[%emt 0:01:26]} Bg7 {[%emt 0:00:49]} 57. Bb3 {[%emt 0:04:31]} Rc3+ {[%emt 0:01:11]} 58. Ke4 {[%emt 0:00:07]} Rh3 {[%emt 0:02:25]} 59. Kf5 {[%emt 0:01:05]} Re3 {[%emt 0:04:37]} 60. Kf4 {[%emt 0:00:34]} Rd3 {[%emt 0:00:32]} 61. Kf5 {[%emt 0:00:57]} e5 {[%emt 0:00:56]} 62. Bf7 {[%emt 0:01:51]} Rd4 {[%emt 0:00:57]} 63. Rg4 {[%emt 0:00:17]} Rxg4 {[%emt 0:02:07]} 64. Kxg4 {[%emt 0:00:10]} b3 {[%emt 0:00:00]} 65. Bxb3 {[%emt 0:00:08]} Kxg6 {[%emt 0:00:01]} 66. Kf3 {[%emt 0:00:34]} Kh5 {[%emt 0:00:25]} 67. Ke4 {[%emt 0:00:05]} Kxh4 {[%emt 0:00:03]} 68. Bd5 {[%emt 0:00:03]} 1/2-1/2

[Event "European Womens-ch 2025"]
[Site "Rhodes"]
[Date "2025.04.02"]
[Round "3.57"]
[White "Silva, Ana Ines Teixeira Da"]
[Black "Dicen, Elis Denele"]
[Result "0-1"]
[Annotator "RC"]
[ECO "C48"]
[WhiteElo "1893"]
[BlackElo "2129"]
[PlyCount "92"]
[EventDate "2025.03.29"]
[EventType "swiss"]
[EventCountry "GRE"]
[SourceTitle "playchess.com"]
[Source "ChessBase"]
[SourceQuality "1"]
[TimeControl "40/5400+30:1800+30"]

1. e4 {[%emt 0:00:02]} e5 {[%emt 0:00:07]} 2. Nf3 {[%emt 0:00:09]} Nc6 {[%emt 0:00:06]} 3. Nc3 {[%emt 0:00:21]} Nf6 {[%emt 0:00:31]} 4. Bb5 {[%emt 0:00:36]} Nd4 {[%emt 0:03:46]} 5. Nxd4 {[%emt 0:02:30]} exd4 {[%emt 0:00:09]} 6. e5 {[%emt 0:00:47]} dxc3 {[%emt 0:01:09]} 7. exf6 {[%emt 0:00:09]} Qxf6 {[%emt 0:00:45]} 8. dxc3 {[%emt 0:03:35]} c6 {[%emt 0:02:27]} 9. Qe2+ {[%emt 0:13:14]} Be7 {[%emt 0:01:16]} 10. Bd3 {[%emt 0:03:12]} d5 {[%emt 0:02:53]} 11. Be3 {[%emt 0:05:06]} Qd6 {[%emt 0:06:27]} 12. O-O-O {[%emt 0:06:35]} Be6 {[%emt 0:04:01]} 13. Kb1 {[%emt 0:04:44]} a6 {[%emt 0:04:13]} 14. Bd4 {[%emt 0:07:04]} O-O {[%emt 0:07:25]} 15. Qh5 {[%emt 0:12:48]} h6 {[%emt 0:11:57]} 16. Be5 {[%emt 0:14:11]} Qd7 {[%emt 0:02:21]} 17. h3 {[%emt 0:03:01]} Bd6 {[%emt 0:05:04]} 18. f4 {[%emt 0:04:23]} Bxe5 {[%emt 0:04:07]} 19. Qxe5 {[%emt 0:01:48]} f5 {[%emt 0:04:43]} 20. c4 {[%emt 0:04:10]} Qf7 {[%emt 0:03:01]} 21. c5 {[%emt 0:05:45]} d4 {[%emt 0:03:20]} 22. Qxd4 {[%emt 0:00:44]} Bxa2+ {[%emt 0:01:01]} 23. Ka1 {[%emt 0:00:07]} Rad8 {[%emt 0:01:19]} 24. Qc3 {[%emt 0:00:58]} Bd5 {[%emt 0:01:10]} 25. Rhg1 {[%emt 0:01:49]} Rd7 {[%emt 0:01:39]} 26. Rde1 {[%emt 0:02:21]} Re7 {[%emt 0:03:14]} 27. Re5 {[%emt 0:00:39]} Rxe5 {[%emt 0:01:17]} 28. Qxe5 {[%emt 0:00:21]} Bc4 {[%emt 0:04:47]} 29. Bxc4 {[%emt 0:02:15]} Qxc4 {[%emt 0:00:05]} 30. Re1 {[%emt 0:01:20]} Qxc2 {[%emt 0:02:30]} 31. Qe6+ {[%emt 0:00:04]} Kh7 {[%emt 0:00:37]} 32. Qe7 {[%emt 0:00:37]} Rf6 {[%emt 0:02:06]} 33. Qxb7 {[%emt 0:00:10]} Rg6 {[%emt 0:02:33]} 34. g4 {[%emt 0:01:10]} fxg4 {[%emt 0:01:55]} 35. hxg4 {[%emt 0:00:04]} Qa4+ {[%emt 0:01:00]} 36. Kb1 {[%emt 0:00:11]} Qxf4 {[%emt 0:00:24]} 37. Qxa6 {[%emt 0:00:30]} Qxg4 {[%emt 0:00:31]} 38. Qd3 {[%emt 0:00:49]} h5 {[%emt 0:02:24]} 39. Qc2 {[%emt 0:00:49]} Qg2 {[%emt 0:04:57]} 40. Qf5 {[%emt 0:00:00]} Qg5 {[%emt 0:00:00]} 41. Qc2 {[%emt 0:03:40]} Qg4 {[%emt 0:07:44]} 42. Rd1 {[%emt 0:01:48]} h4 {[%emt 0:30:29]} 43. Rd6 {[%emt 0:04:45]} h3 {[%emt 0:00:00]} 44. Rxc6 {[%emt 0:03:25]} Qg2 {[%emt 0:00:00]} 45. Rxg6 {[%emt 0:02:43]} Qxg6 {[%emt 0:00:00]} 46. c6 {[%emt 0:04:13]} h2 {[%emt 0:00:00]} 0-1

[Event "European Womens-ch 2025"]
[Site "Rhodes"]
[Date "2025.04.02"]
[Round "3.58"]
[White "Heinatz, Gundula"]
[Black "Harutyunyan, Gabriela"]
[Result "1/2-1/2"]
[Annotator "RC"]
[ECO "A26"]
[WhiteElo "2111"]
[BlackElo "1793"]
[PlyCount "75"]
[EventDate "2025.03.29"]
[EventType "swiss"]
[EventCountry "GRE"]
[SourceTitle "playchess.com"]
[Source "ChessBase"]
[SourceQuality "1"]
[TimeControl "40/5400+30:1800+30"]

1. c4 {[%emt 0:00:03]} e5 {[%emt 0:00:26]} 2. g3 {[%emt 0:00:11]} g6 {[%emt 0:01:40]} 3. Bg2 {[%emt 0:00:12]} Bg7 {[%emt 0:00:18]} 4. Nc3 {[%emt 0:00:28]} Ne7 {[%emt 0:01:18]} 5. d3 {[%emt 0:01:10]} Nbc6 {[%emt 0:04:23]} 6. Bd2 {[%emt 0:01:43]} d6 {[%emt 0:01:35]} 7. Rb1 {[%emt 0:05:34]} a5 {[%emt 0:13:29]} 8. a3 {[%emt 0:02:13]} Rb8 {[%emt 0:08:08]} 9. b4 {[%emt 0:03:51]} axb4 {[%emt 0:01:39]} 10. axb4 {[%emt 0:00:06]} O-O {[%emt 0:03:16]} 11. b5 {[%emt 0:08:13]} Nd4 {[%emt 0:03:23]} 12. e3 {[%emt 0:03:46]} Ne6 {[%emt 0:00:32]} 13. Nge2 {[%emt 0:01:21]} f5 {[%emt 0:03:54]} 14. f4 {[%emt 0:08:42]} b6 {[%emt 0:08:43]} 15. O-O {[%emt 0:06:52]} Bb7 {[%emt 0:01:27]} 16. Nd5 {[%emt 0:04:06]} Nc5 {[%emt 0:07:32]} 17. Qc2 {[%emt 0:06:51]} Re8 {[%emt 0:03:01]} 18. e4 {[%emt 0:08:10]} Nxd5 {[%emt 0:08:40]} 19. cxd5 {[%emt 0:00:22]} Bc8 {[%emt 0:00:58]} 20. Bc3 {[%emt 0:09:30]} Qe7 {[%emt 0:05:57]} 21. fxe5 {[%emt 0:05:07]} dxe5 {[%emt 0:01:32]} 22. Bb4 {[%emt 0:00:53]} Bf8 {[%emt 0:03:31]} 23. d4 {[%emt 0:08:24]} exd4 {[%emt 0:00:39]} 24. Nxd4 {[%emt 0:00:03]} Bd7 {[%emt 0:02:40]} 25. Ne6 {[%emt 0:03:58]} Bxe6 {[%emt 0:03:18]} 26. dxe6 {[%emt 0:00:01]} fxe4 {[%emt 0:05:14]} 27. Bh3 {[%emt 0:00:21]} Qg5 {[%emt 0:01:22]} 28. Qf2 {[%emt 0:05:53]} Bg7 {[%emt 0:01:33]} 29. Qf7+ {[%emt 0:00:21]} Kh8 {[%emt 0:00:09]} 30. Qxc7 {[%emt 0:01:20]} Be5 {[%emt 0:03:44]} 31. Qa7 {[%emt 0:01:12]} Bxg3 {[%emt 0:01:01]} 32. hxg3 {[%emt 0:00:42]} Qxg3+ {[%emt 0:00:11]} 33. Bg2 {[%emt 0:00:06]} Qe3+ {[%emt 0:00:52]} 34. Kh2 {[%emt 0:00:31]} Ra8 {[%emt 0:00:40]} 35. Qf7 {[%emt 0:01:13]} Qh6+ {[%emt 0:00:23]} 36. Kg1 {[%emt 0:00:16]} Qe3+ {[%emt 0:00:31]} 37. Kh2 {[%emt 0:00:16]} Qh6+ {[%emt 0:00:18]} 38. Kg1 {[%emt 0:00:51]} 1/2-1/2

[Event "European Womens-ch 2025"]
[Site "Rhodes"]
[Date "2025.04.02"]
[Round "3.59"]
[White "Alexandri, Vasiliki"]
[Black "Ter-Avetisjana, Agnesa Stepania"]
[Result "1/2-1/2"]
[Annotator "RC"]
[ECO "D44"]
[WhiteElo "1927"]
[BlackElo "2100"]
[PlyCount "74"]
[EventDate "2025.03.29"]
[EventType "swiss"]
[EventCountry "GRE"]
[SourceTitle "playchess.com"]
[Source "ChessBase"]
[SourceQuality "1"]
[TimeControl "40/5400+30:1800+30"]

1. d4 {[%emt 0:00:03]} d5 {[%emt 0:00:14]} 2. c4 {[%emt 0:00:03]} c6 {[%emt 0:00:06]} 3. Nc3 {[%emt 0:00:08]} Nf6 {[%emt 1:31:40]} 4. Nf3 {[%emt 0:00:06]} e6 {[%emt 0:00:00]} 5. Bg5 {[%emt 0:00:07]} dxc4 {[%emt 0:00:00]} 6. e4 {[%emt 0:00:15]} b5 {[%emt 0:00:00]} 7. e5 {[%emt 0:00:28]} h6 {[%emt 0:00:00]} 8. Bh4 {[%emt 0:01:04]} g5 {[%emt 0:00:00]} 9. Nxg5 {[%emt 0:00:16]} hxg5 {[%emt 0:00:00]} 10. Bxg5 {[%emt 0:00:28]} Nbd7 {[%emt 0:00:00]} 11. g3 {[%emt 0:05:57]} Qb6 {[%emt 0:00:00]} 12. exf6 {[%emt 0:01:29]} Bb7 {[%emt 0:00:00]} 13. Bg2 {[%emt 0:02:43]} c5 {[%emt 0:00:00]} 14. d5 {[%emt 0:08:07]} O-O-O {[%emt 0:00:00]} 15. O-O b4 {[%emt 0:00:00]} 16. dxe6 Bxg2 {[%emt 0:00:00]} 17. e7 Re8 {[%emt 0:07:00]} 18. exf8=Q {[%emt 1:18:16]} Rhxf8 {[%emt 0:00:00]} 19. Kxg2 {[%emt 0:00:00]} bxc3 20. bxc3 Re6 {[%emt 0:00:00]} 21. Qd5 Re5 {[%emt 0:00:00]} 22. Qd2 Qc6+ {[%emt 0:01:55]} 23. f3 Rd5 {[%emt 0:00:32]} 24. Qe3 Rd8 {[%emt 0:00:29]} 25. Rfd1 Ne5 {[%emt 0:00:31]} 26. Rxd5 Qxd5 {[%emt 0:00:26]} 27. Qe4 {[%emt 0:03:16]} Qxe4 {[%emt 0:00:30]} 28. fxe4 {[%emt 0:00:30]} Rd3 {[%emt 0:01:07]} 29. Rc1 {[%emt 0:01:44]} Kd7 {[%emt 0:00:00]} 30. h4 {[%emt 0:00:00]} Nf3 {[%emt 0:01:00]} 31. Bf4 {[%emt 0:00:19]} Ke6 {[%emt 0:00:30]} 32. e5 {[%emt 0:00:25]} Kf5 {[%emt 0:00:30]} 33. Rf1 {[%emt 0:00:37]} Nxe5 {[%emt 0:00:00]} 34. Bxe5+ {[%emt 0:00:02]} Kxe5 {[%emt 0:00:00]} 35. Rf3 {[%emt 0:00:54]} Rd2+ {[%emt 0:00:00]} 36. Rf2 {[%emt 0:00:19]} Rd3 {[%emt 0:00:00]} 37. Rf3 {[%emt 0:00:44]} Rd2+ {[%emt 0:00:00]} 1/2-1/2